fUST/lending_fUST_20250702
["ID","MTS","AMOUNT","RATE_DAILY","PERIOD"]
[369003393,1751431847724,-1826.62,0.00019884,2]
[369003394,1751431847733,-151.0,0.000199,2]
[369003395,1751431847743,-195.66481742,0.0001991,2]
[369003396,1751431847753,-581.0,0.00019925,2]
[369003397,1751431847763,-460.0,0.00019981,2]
[369003398,1751431847773,-460.0,0.00019981,2]
[369003399,1751431847783,-537.78,0.00019984,2]
[369003400,1751431847793,-207.93081835,0.00020008,2]
[369003401,1751431847802,-692.3,0.00020153,2]
[369003402,1751431847812,-277.63265808,0.00020153,2]
[369003403,1751431847821,-1199.76,0.00020153,2]
[369003404,1751431847831,-719.15,0.00020154,2]
[369003405,1751431847840,-815.94,0.00020154,2]
[369003406,1751431847850,-1002.97,0.00020154,2]
[369003407,1751431847859,-460.0,0.00020154,2]
[369003408,1751431847872,-460.0,0.00020154,2]
[369003409,1751431847883,-151.0,0.00020156,2]
[369003410,1751431847893,-151.0,0.00020156,2]
[369003411,1751431847902,-219.891598,0.00020156,2]
[369003412,1751431847914,-219.891598,0.00020156,2]
[369003413,1751431847924,-151.0,0.00020156,2]
[369003414,1751431847934,-2037.55,0.00020156,2]
[369003415,1751431847944,-1713.174812,0.00020156,2]
[369003416,1751431847954,-1713.174812,0.00020156,2]
[369003417,1751431847964,-460.0,0.00020156,2]
[369003418,1751431847974,-680.054871,0.00020156,2]
[369003419,1751431848060,-680.054871,0.00020156,2]
[369003420,1751431848070,-151.0,0.00020156,2]
[369003421,1751431848080,-151.0,0.00020156,2]
[369003422,1751431848089,-151.0,0.00020156,2]
[369003423,1751431848099,-1417.43,0.00020158,2]
[369003424,1751431848108,-460.0,0.00020158,2]
[369003425,1751431848117,-209.66859064,0.00020158,2]
[369003426,1751431848127,-460.0,0.00020158,2]
[369003427,1751431848136,-460.0,0.00020158,2]
[369003428,1751431848146,-588.68,0.00020158,2]
[369003429,1751431848155,-652.03,0.00020158,2]
[369003430,1751431848165,-1826.62,0.00020158,2]
[369003431,1751431848176,-297.879974,0.00020187,2]
[369003432,1751431848188,-460.0,0.00020255,2]
[369003433,1751431848197,-460.0,0.00020255,2]
[369003434,1751431848208,-537.78,0.00020258,2]
[369003435,1751431848217,-245.1,0.00020305,4]
[369003436,1751431848227,-692.3,0.00020427,2]
[369003437,1751431848236,-1199.76,0.00020427,2]
[369003438,1751431848245,-719.15,0.00020428,2]
[369003439,1751431848255,-815.94,0.00020428,2]
[369003440,1751431848264,-1002.97,0.00020428,2]
[369003441,1751431848273,-460.0,0.00020428,2]
[369003442,1751431848283,-460.0,0.00020428,2]
[369003443,1751431848292,-2037.55,0.0002043,2]
[369003444,1751431848302,-552.49,0.0002043,2]
[369003445,1751431848311,-151.0,0.00020432,2]
[369003446,1751431848320,-1417.43,0.00020432,2]
[369003447,1751431848329,-460.0,0.00020432,2]
[369003448,1751431848340,-460.0,0.00020432,2]
[369003449,1751431848349,-460.0,0.00020432,2]
[369003450,1751431848359,-588.68,0.00020432,2]
[369003451,1751431848369,-652.03,0.00020432,2]
[369003452,1751431848379,-1826.62,0.00020432,2]
[369003453,1751431848388,-500.0,0.0002044,2]
[369003454,1751431848399,-460.0,0.00020529,2]
[369003455,1751431848408,-460.0,0.00020529,2]
[369003456,1751431848418,-151.0,0.00020532,2]
[369003457,1751431848427,-154.406951,0.00020532,2]
[369003458,1751431848437,-154.406951,0.00020532,2]
[369003459,1751431848446,-206.095237,0.00020532,2]
[369003460,1751431848456,-206.095237,0.00020532,2]
[369003461,1751431848466,-537.78,0.00020532,2]
[369003462,1751431848475,-500.86,0.000206,2]
[369003463,1751431848485,-178.16484544,0.00020628,2]
[369003464,1751431848494,-594.745,0.00020628,2]
[369003465,1751431848504,-151.0,0.000207,3]
[369003466,1751431848513,-692.3,0.00020701,2]
[369003467,1751431848523,-1199.76,0.00020701,2]
[369003468,1751431848532,-719.15,0.00020702,2]
[369003469,1751431848542,-815.94,0.00020702,2]
[369003470,1751431848551,-1002.97,0.00020702,2]
[369003471,1751431848561,-460.0,0.00020702,2]
[369003472,1751431848570,-460.0,0.00020702,2]
[369003473,1751431848579,-2037.55,0.00020704,2]
[369003474,1751431848589,-1417.43,0.00020706,2]
[369003475,1751431848599,-460.0,0.00020706,2]
[369003476,1751431848608,-460.0,0.00020706,2]
[369003477,1751431848617,-460.0,0.00020706,2]
[369003478,1751431848627,-588.68,0.00020706,2]
[369003479,1751431848637,-652.03,0.00020706,2]
[369003480,1751431848646,-1826.62,0.00020706,2]
[369003481,1751431848656,-245.1,0.00020752,4]
[369003482,1751431848665,-460.0,0.00020803,2]
[369003483,1751431848675,-519.74,0.00020803,2]
[369003484,1751431848684,-323.340612,0.00020804,2]
[369003485,1751431848693,-323.340612,0.00020804,2]
[369003486,1751431848703,-537.78,0.00020806,2]
[369003487,1751431848712,-692.3,0.00020975,2]
[369003488,1751431848721,-1199.76,0.00020975,2]
[369003489,1751431848730,-719.15,0.00020976,2]
[369003490,1751431848740,-815.94,0.00020976,2]
[369003491,1751431848750,-1002.97,0.00020976,2]
[369003492,1751431848759,-460.0,0.00020976,2]
[369003493,1751431848770,-460.0,0.00020976,2]
[369003494,1751431848779,-2037.55,0.00020978,2]
[369003495,1751431848790,-1417.43,0.0002098,2]
[369003496,1751431848799,-460.0,0.0002098,2]
[369003497,1751431848809,-460.0,0.0002098,2]
[369003498,1751431848819,-228.84357178,0.0002098,2]
[369003499,1751431848829,-588.68,0.0002098,2]
[369003500,1751431848839,-652.03,0.0002098,2]
[369003501,1751431848849,-1826.62,0.0002098,2]
[369003502,1751431848858,-460.0,0.00021077,2]
[369003503,1751431848867,-537.78,0.0002108,2]
[369003504,1751431848877,-207.4,0.00021084,2]
[369003505,1751431848886,-1500.0,0.00021084,2]
[369003506,1751431848896,-5000.0,0.00021084,2]
[369003507,1751431848905,-1500.0,0.00021084,2]
[369003508,1751431848915,-1500.0,0.00021084,2]
[369003509,1751431848925,-1500.0,0.00021084,2]
[369003510,1751431848935,-1500.0,0.00021084,2]
[369003511,1751431848945,-1500.0,0.00021084,2]
[369003512,1751431848955,-1500.0,0.00021084,2]
[369003513,1751431848964,-1500.0,0.00021084,2]
[369003514,1751431848973,-1500.0,0.00021084,2]
[369003515,1751431848982,-1500.0,0.00021084,2]
[369003516,1751431848992,-1406.24796827,0.00021084,2]
[369003517,1751431849002,-245.1,0.00021199,4]
[369003518,1751431849015,-692.3,0.00021249,2]
[369003519,1751431849025,-1199.76,0.00021249,2]
[369003520,1751431849034,-719.15,0.0002125,2]
[369003521,1751431849043,-815.94,0.0002125,2]
[369003522,1751431849052,-1002.97,0.0002125,2]
[369003523,1751431849062,-460.0,0.0002125,2]
[369003524,1751431849072,-460.0,0.0002125,2]
[369003525,1751431849082,-2037.55,0.00021252,2]
[369003526,1751431849091,-1417.43,0.00021254,2]
[369003527,1751431849101,-460.0,0.00021254,2]
[369003528,1751431849110,-460.0,0.00021254,2]
[369003529,1751431849120,-588.68,0.00021254,2]
[369003530,1751431849130,-652.03,0.00021254,2]
[369003531,1751431849139,-1826.62,0.00021254,2]
[369003532,1751431849149,-460.0,0.00021351,2]
[369003533,1751431849158,-151.0,0.00021352,2]
[369003534,1751431849168,-151.0,0.00021352,2]
[369003535,1751431849181,-151.0,0.00021352,2]
[369003536,1751431849191,-151.0,0.00021352,2]
[369003537,1751431849200,-151.0,0.00021352,2]
[369003538,1751431849210,-151.0,0.00021352,2]
[369003539,1751431849219,-151.0,0.00021352,2]
[369003540,1751431849229,-212.927939,0.00021352,2]
[369003541,1751431849239,-212.927939,0.00021352,2]
[369003542,1751431849249,-169.281966,0.00021352,2]
[369003543,1751431849333,-169.281966,0.00021352,2]
[369003544,1751431849343,-537.78,0.00021354,2]
[369003545,1751431849353,-505.69477543,0.00021388,2]
[369003546,1751431849364,-8000.0,0.00021468,2]
[369003547,1751431849374,-151.0,0.000215,4]
[369003548,1751431849383,-692.3,0.00021523,2]
[369003549,1751431849393,-1199.76,0.00021523,2]
[369003550,1751431849403,-719.15,0.00021524,2]
[369003551,1751431849413,-815.94,0.00021524,2]
[369003552,1751431849423,-1002.97,0.00021524,2]
[369003553,1751431849431,-460.0,0.00021524,2]
[369003554,1751431849441,-460.0,0.00021524,2]
[369003555,1751431849450,-9000.0,0.00021526,2]
[369003556,1751431849459,-2037.55,0.00021526,2]
[369003557,1751431849469,-1417.43,0.00021528,2]
[369003558,1751431849478,-460.0,0.00021528,2]
[369003559,1751431849488,-460.0,0.00021528,2]
[369003560,1751431849497,-588.68,0.00021528,2]
[369003561,1751431849507,-652.03,0.00021528,2]
[369003562,1751431849516,-1826.62,0.00021528,2]
[369003563,1751431849526,-9000.0,0.00021548,2]
[369003564,1751431849535,-460.0,0.00021625,2]
[369003565,1751431849545,-537.78,0.00021628,2]
[369003566,1751431849555,-6000.0,0.00021642,2]
[369003567,1751431849564,-245.1,0.00021646,5]
[369003568,1751431849574,-692.3,0.00021796,2]
[369003569,1751431849583,-1199.76,0.00021796,2]
[369003570,1751431849592,-719.15,0.00021798,2]
[369003571,1751431849602,-815.94,0.00021798,2]
[369003572,1751431849611,-1002.97,0.00021798,2]
[369003573,1751431849621,-460.0,0.00021798,2]
[369003574,1751431849631,-460.0,0.00021798,2]
[369003575,1751431849640,-2037.55,0.000218,2]
[369003576,1751431849649,-1417.43,0.00021802,2]
[369003577,1751431849658,-305.0237457,0.00021802,2]
[369003578,1751431849667,-460.0,0.00021802,2]
[369003579,1751431849678,-588.68,0.00021802,2]
[369003580,1751431849689,-652.03,0.00021802,2]
[369003581,1751431849700,-1826.62,0.00021802,2]
[369003582,1751431849710,-460.0,0.00021899,2]
[369003583,1751431849720,-537.78,0.00021902,2]
[369003584,1751431849730,-150.0,0.00021917,2]
[369003585,1751431849740,-3145.09,0.00022,7]
[369003586,1751431849749,-7819.95,0.00022,2]
[369003587,1751431849759,-409.82,0.00022,7]
[369003588,1751431849768,-151.0,0.00022,7]
[369003589,1751431849779,-151.0,0.00022,7]
[369003590,1751431849788,-151.0,0.00022,7]
[369003591,1751431849798,-151.0,0.00022,7]
[369003592,1751431849808,-151.0,0.00022,7]
[369003593,1751431849818,-151.0,0.00022,7]
[369003594,1751431849827,-304.25081,0.00022,7]
[369003595,1751431849837,-304.25081,0.00022,7]
[369003596,1751431849846,-151.0,0.00022,7]
[369003597,1751431849856,-692.3,0.0002207,2]
[369003598,1751431849865,-1199.76,0.0002207,2]
[369003599,1751431849875,-151.0,0.00022072,7]
[369003600,1751431849885,-719.15,0.00022072,2]
[369003601,1751431849894,-815.94,0.00022072,2]
[369003602,1751431849904,-1002.97,0.00022072,2]
[369003603,1751431849916,-460.0,0.00022072,2]
[369003604,1751431849926,-516.025726,0.00022072,7]
[369003605,1751431849935,-516.025726,0.00022072,7]
[369003606,1751431849945,-579.48956613,0.00022072,2]
[369003607,1751431849955,-151.0,0.00022072,7]
[369003608,1751431849965,-151.0,0.00022072,7]
[369003609,1751431849975,-266.561174,0.00022072,7]
[369003610,1751431849984,-266.561174,0.00022072,7]
[369003611,1751431849993,-151.0,0.00022072,7]
[369003612,1751431850002,-2037.55,0.00022074,2]
[369003613,1751431850012,-151.901102,0.00022074,7]
[369003614,1751431850022,-151.0,0.00022074,7]
[369003615,1751431850031,-1344.141414,0.00022074,7]
[369003616,1751431850040,-1344.141414,0.00022074,7]
[369003617,1751431850049,-1417.43,0.00022076,2]
[369003618,1751431850059,-460.0,0.00022076,2]
[369003619,1751431850069,-588.68,0.00022076,2]
[369003620,1751431850079,-652.03,0.00022076,2]
[369003621,1751431850090,-1826.62,0.00022076,2]
[369003622,1751431850101,-245.1,0.00022092,5]
[369003623,1751431850112,-195.76878551,0.00022101,2]
[369003624,1751431850122,-460.0,0.00022173,2]
[369003625,1751431850135,-151.0,0.00022174,7]
[369003626,1751431850144,-533.106935,0.00022174,7]
[369003627,1751431850153,-533.106935,0.00022174,7]
[369003628,1751431850163,-537.78,0.00022176,2]
[369003629,1751431850172,-151.897169,0.00022176,7]
[369003630,1751431850186,-196.90230409,0.000222,69]
[369003631,1751431850195,-151.0,0.000223,8]
[369003632,1751431850206,-692.3,0.00022344,2]
[369003633,1751431850216,-1199.76,0.00022344,2]
[369003634,1751431850226,-719.15,0.00022346,2]
[369003635,1751431850237,-815.94,0.00022346,2]
[369003636,1751431850247,-1002.97,0.00022346,2]
[369003637,1751431850259,-460.0,0.00022346,2]
[369003638,1751431850268,-2037.55,0.00022348,2]
[369003639,1751431850277,-1417.43,0.0002235,2]
[369003640,1751431850287,-392.09464604,0.0002235,2]
[369003641,1751431850296,-588.68,0.0002235,2]
[369003642,1751431850306,-652.03,0.0002235,2]
[369003643,1751431850315,-1826.62,0.0002235,2]
[369003644,1751431850325,-460.0,0.00022447,2]
[369003645,1751431850335,-537.78,0.0002245,2]
[369003646,1751431850345,-215.0738,0.00022453,2]
[369003647,1751431850354,-500.86,0.000225,7]
[369003648,1751431850364,-245.1,0.00022539,5]
[369003649,1751431850373,-233.701952,0.00022603,2]
[369003650,1751431850382,-692.3,0.00022618,2]
[369003651,1751431850392,-1199.76,0.00022618,2]
[369003652,1751431850402,-719.15,0.0002262,2]
[369003653,1751431850411,-815.94,0.0002262,2]
[369003654,1751431850421,-1002.97,0.0002262,2]
[369003655,1751431850430,-460.0,0.0002262,2]
[369003656,1751431850439,-2037.55,0.00022622,2]
[369003657,1751431850520,-1417.43,0.00022624,2]
[369003658,1751431850531,-588.68,0.00022624,2]
[369003659,1751431850543,-652.03,0.00022624,2]
[369003660,1751431850553,-1826.62,0.00022624,2]
[369003661,1751431850564,-160.0,0.00022674,3]
[369003662,1751431850573,-3380.0,0.00022687,2]
[369003663,1751431850584,-461.30220598,0.00022721,2]
[369003664,1751431850595,-151.0,0.00022724,7]
[369003665,1751431850606,-151.0,0.00022724,7]
[369003666,1751431850616,-537.78,0.00022724,2]
[369003667,1751431850626,-744.979355,0.00022724,7]
[369003668,1751431850636,-744.979355,0.00022724,7]
[369003669,1751431850645,-257.809115,0.00022724,7]
[369003670,1751431850655,-257.809115,0.00022724,7]
[369003671,1751431850664,-168.0,0.00022833,2]
[369003672,1751431850674,-692.32029482,0.00022892,2]
[369003673,1751431850683,-1199.92,0.00022892,2]
[369003674,1751431850693,-719.29,0.00022893,2]
[369003675,1751431850702,-815.95541706,0.00022893,2]
[369003676,1751431850712,-1003.03497689,0.00022893,2]
[369003677,1751431850723,-420.76472163,0.00022893,2]
[369003678,1751431850732,-2037.6731108,0.00022896,2]
[369003679,1751431850742,-1417.51980534,0.00022898,2]
[369003680,1751431850752,-588.88921808,0.00022898,2]
[369003681,1751431850762,-652.08353626,0.00022898,2]
[369003682,1751431850771,-1826.63216586,0.00022898,2]
[369003683,1751431850781,-168.0,0.0002292,2]
[369003684,1751431850792,-151.0,0.0002292,7]
[369003685,1751431850803,-151.0,0.0002292,7]
[369003686,1751431850812,-219.891598,0.0002292,7]
[369003687,1751431850824,-219.891598,0.0002292,7]
[369003688,1751431850834,-151.0,0.0002292,7]
[369003689,1751431850844,-1713.174812,0.0002292,7]
[369003690,1751431850854,-1713.174812,0.0002292,7]
[369003691,1751431850864,-680.054871,0.0002292,7]
[369003692,1751431850874,-680.054871,0.0002292,7]
[369003693,1751431850884,-151.0,0.0002292,7]
[369003694,1751431850894,-151.768806,0.0002292,7]
[369003695,1751431850904,-151.0,0.0002292,7]
[369003696,1751431850914,-245.1,0.00022986,6]
[369003697,1751431850924,-537.87913339,0.00022998,2]
[369003698,1751431850934,-168.0,0.00023162,2]
[369003699,1751431850944,-151.0,0.000232,6]
[369003700,1751431850953,-168.0,0.000232,2]
[369003701,1751431850963,-1543.0,0.00023288,2]
[369003702,1751431850972,-200.0,0.0002342,8]
[369003703,1751431850982,-245.1,0.00023433,6]
[369003704,1751431850992,-168.0,0.00023571,2]
[369003705,1751431851001,-168.0,0.00023607,2]
[369003706,1751431851011,-168.0,0.00023607,2]
[369003707,1751431851021,-168.0,0.00023679,2]
[369003708,1751431851031,-223.0315306,0.00023822,2]
[369003709,1751431851040,-245.1,0.0002388,6]
[369003710,1751431851050,-2131.93864915,0.000239,2]
[369003711,1751431851060,-160.0,0.00023942,4]
[369003712,1751431851069,-474.26,0.00024,2]
[369003713,1751431851078,-151.0,0.00024,7]
[369003714,1751431851088,-7819.95,0.00024,2]
[369003715,1751431851098,-524.6887252,0.00024,3]
[369003716,1751431851107,-524.6887252,0.00024,3]
[369003717,1751431851116,-837.27862799,0.00024,7]
[369003718,1751431851126,-230.34465076,0.00024,7]
[369003719,1751431851135,-648.073,0.0002406,2]
[369003720,1751431851144,-2157.622,0.0002406,2]
[369003721,1751431851153,-406.0,0.0002406,2]
[369003722,1751431851163,-168.0,0.0002407,2]
[369003723,1751431851174,-409.82,0.000241,7]
[369003724,1751431851184,-366.4191338,0.00024164,2]
[369003725,1751431851194,-366.4191338,0.00024164,2]
[369003726,1751431851203,-366.4191338,0.00024164,2]
[369003727,1751431851213,-366.4191338,0.00024164,2]
[369003728,1751431851223,-366.4191338,0.00024164,2]
[369003729,1751431851232,-366.4191338,0.00024164,2]
[369003730,1751431851241,-357.3133662,0.00024301,2]
[369003731,1751431851251,-153.0,0.00024301,2]
[369003732,1751431851261,-154.5820102,0.00024301,2]
[369003733,1751431851271,-153.0,0.00024301,2]
[369003734,1751431851279,-153.0,0.00024301,2]
[369003735,1751431851289,-153.0,0.00024301,2]
[369003736,1751431851299,-153.0,0.00024301,2]
[369003737,1751431851308,-153.0,0.00024301,2]
[369003738,1751431851318,-845.126469,0.00024303,4]
[369003739,1751431851328,-168.0,0.00024308,2]
[369003740,1751431851337,-245.1,0.00024326,7]
[369003741,1751431851346,-168.0,0.00024364,2]
[369003742,1751431851356,-168.0,0.00024502,2]
[369003743,1751431851366,-168.0,0.00024576,2]
[369003744,1751431851376,-3145.09,0.000246,7]
[369003745,1751431851387,-160.0,0.000246,7]
[369003746,1751431851399,-2281.20882434,0.00024628,2]
[369003747,1751431851408,-2000.01040192,0.0002465,2]
[369003748,1751431851418,-300.0,0.00024657,4]
[369003749,1751431851427,-786.54936096,0.000247,2]
[369003750,1751431851437,-213.150477,0.00024734,7]
[369003751,1751431851447,-786.54936096,0.0002474,2]
[369003752,1751431851456,-323.340612,0.00024743,2]
[369003753,1751431851466,-323.340612,0.00024743,2]
[369003754,1751431851475,-168.0,0.00024743,2]
[369003755,1751431851485,-245.1,0.00024773,7]
[369003756,1751431851495,-786.54936096,0.0002478,2]
[369003757,1751431851504,-1543.0,0.0002478,2]
[369003758,1751431851514,-168.0,0.00024781,2]
[369003759,1751431851523,-151.0,0.00024795,7]
[369003760,1751431851533,-151.0,0.00024795,7]
[369003761,1751431851543,-151.0,0.00024795,2]
[369003762,1751431851622,-151.0,0.00024795,7]
[369003763,1751431851632,-154.406951,0.00024795,7]
[369003764,1751431851643,-154.406951,0.00024795,7]
[369003765,1751431851653,-151.0,0.00024795,2]
[369003766,1751431851663,-500.0,0.00024795,2]
[369003767,1751431851673,-500.0,0.00024795,2]
[369003768,1751431851682,-500.0,0.00024795,2]
[369003769,1751431851691,-500.0,0.00024795,2]
[369003770,1751431851700,-500.0,0.00024795,2]
[369003771,1751431851710,-500.0,0.00024795,2]
[369003772,1751431851719,-500.0,0.00024795,2]
[369003773,1751431851729,-151.0,0.00024795,2]
[369003774,1751431851738,-151.0,0.00024795,2]
[369003775,1751431851748,-154.25677098,0.00024795,2]
[369003776,1751431851757,-500.0,0.00024795,2]
[369003777,1751431851766,-154.5342084,0.00024795,2]
[369003778,1751431851776,-206.095237,0.00024795,7]
[369003779,1751431851785,-206.095237,0.00024795,7]
[369003780,1751431851795,-151.0,0.00024795,2]
[369003781,1751431851806,-151.0,0.00024795,2]
[369003782,1751431851820,-153.48649332,0.00024795,2]
[369003783,1751431851830,-500.0,0.00024795,2]
[369003784,1751431851840,-500.0,0.00024795,2]
[369003785,1751431851850,-151.0,0.00024795,2]
[369003786,1751431851860,-151.0,0.00024795,2]
[369003787,1751431851870,-151.0,0.00024795,2]
[369003788,1751431851880,-500.0,0.00024795,2]
[369003789,1751431851890,-152.6526536,0.00024795,2]
[369003790,1751431851901,-151.0,0.00024795,2]
[369003791,1751431851912,-151.0,0.00024795,2]
[369003792,1751431851922,-500.0,0.00024795,2]
[369003793,1751431851932,-208.52154144,0.00024795,2]
[369003794,1751431851943,-151.0,0.00024795,2]
[369003795,1751431851954,-500.0,0.00024795,2]
[369003796,1751431851964,-500.0,0.00024795,2]
[369003797,1751431851974,-500.0,0.00024795,2]
[369003798,1751431851984,-500.0,0.00024795,2]
[369003799,1751431851994,-500.0,0.00024795,2]
[369003800,1751431852003,-212.17115466,0.000248,2]
[369003801,1751431852014,-1338.35342456,0.000248,2]
[369003802,1751431852023,-136830.13252871,0.000248,30]
[369003803,1751431852297,-281568.26208989,0.000248,30]
[369003804,1751431852316,-409.36086168,0.000248,30]
[369003805,1751431854128,-556.06826592,0.000248,30]
[369003806,1751431854178,-38794.32029195,0.000248,30]
[369003807,1751431854189,-509.7,0.000248,30]
[369003808,1751431854294,-460.0,0.00016591,2]
[369003809,1751431854303,-460.0,0.00016594,2]
[369003810,1751431854313,-5172.37393581,0.000248,30]
[369003811,1751431854325,-2080.03625348,0.000248,30]
[369003812,1751431854337,-761.00200904,0.000248,30]
[369003813,1751431854351,-11619.80450567,0.000248,30]
[369003814,1751431854362,-2086.8534869,0.000248,30]
[369003815,1751431854374,-2597.46,0.000248,30]
[369003816,1751431854386,-3876.73660351,0.000248,30]
[369003817,1751431854397,-18223.23328017,0.000248,30]
[369003818,1751431854410,-17893.60113311,0.000248,30]
[369003819,1751431854421,-344.95327808,0.000248,30]
[369003820,1751431854432,-6187.8243588,0.000248,30]
[369003821,1751431854459,-21644.00487871,0.000248,30]
[369003822,1751431854470,-2900.39667522,0.000248,30]
[369003823,1751431854481,-2178.34074145,0.000248,30]
[369003824,1751431854492,-461674.51006814,0.000248,30]
[369003825,1751431854502,-151.0,0.000248,7]
[369003826,1751431854511,-206.19884,0.000248,7]
[369003827,1751431854520,-206.19884,0.000248,7]
[369003828,1751431854529,-151.0,0.000248,7]
[369003829,1751431854539,-151.0,0.000248,7]
[369003830,1751431854548,-151.0,0.000248,7]
[369003831,1751431854558,-151.0,0.000248,7]
[369003832,1751431854567,-151.0,0.000248,7]
[369003833,1751431854577,-151.0,0.000248,7]
[369003834,1751431854586,-151.0,0.000248,7]
[369003835,1751431854595,-151.0,0.000248,7]
[369003836,1751431854605,-166.933525,0.000248,7]
[369003837,1751431854614,-151.0,0.000248,7]
[369003838,1751431854624,-151.0,0.000248,7]
[369003839,1751431854633,-151.0,0.000248,7]
[369003840,1751431854642,-151.0,0.000248,7]
[369003841,1751431854652,-151.0,0.000248,7]
[369003842,1751431854661,-151.0,0.000248,7]
[369003843,1751431854671,-273.256924,0.000248,7]
[369003844,1751431854680,-151.0,0.000248,7]
[369003845,1751431854690,-151.0,0.000248,7]
[369003846,1751431854699,-151.0,0.000248,7]
[369003847,1751431854708,-323.340612,0.000248,2]
[369003848,1751431854717,-323.340612,0.000248,2]
[369003849,1751431854726,-212.927939,0.000248,7]
[369003850,1751431854735,-212.927939,0.000248,7]
[369003851,1751431854745,-169.281966,0.000248,7]
[369003852,1751431854755,-304.25081,0.000248,7]
[369003853,1751431854764,-169.281966,0.000248,7]
[369003854,1751431854774,-304.25081,0.000248,7]
[369003855,1751431854783,-154.406951,0.000248,7]
[369003856,1751431854793,-154.406951,0.000248,7]
[369003857,1751431854802,-151.0,0.000248,7]
[369003858,1751431854812,-151.0,0.000248,7]
[369003859,1751431854823,-151.0,0.000248,7]
[369003860,1751431854832,-219.891598,0.000248,7]
[369003861,1751431854842,-219.891598,0.000248,7]
[369003862,1751431854852,-206.095237,0.000248,7]
[369003863,1751431854861,-151.920531,0.000248,7]
[369003864,1751431854871,-206.095237,0.000248,7]
[369003865,1751431854882,-151.0,0.000248,7]
[369003866,1751431854891,-151.0,0.000248,7]
[369003867,1751431854901,-533.106935,0.000248,7]
[369003868,1751431854911,-533.106935,0.000248,7]
[369003869,1751431854920,-1713.174812,0.000248,7]
[369003870,1751431854929,-151.0,0.000248,7]
[369003871,1751431854938,-1713.174812,0.000248,7]
[369003872,1751431854947,-744.979355,0.000248,7]
[369003873,1751431854956,-744.979355,0.000248,7]
[369003874,1751431854965,-257.809115,0.000248,7]
[369003875,1751431854974,-257.809115,0.000248,7]
[369003876,1751431854984,-871.61678328,0.000248,2]
[369003877,1751431854993,-516.025726,0.000248,7]
[369003878,1751431855003,-516.025726,0.000248,7]
[369003879,1751431855012,-151.0,0.000248,7]
[369003880,1751431855022,-151.0,0.000248,7]
[369003881,1751431855031,-151.0,0.000248,7]
[369003882,1751431855039,-680.054871,0.000248,7]
[369003883,1751431855049,-680.054871,0.000248,7]
[369003884,1751431855058,-266.561174,0.000248,7]
[369003885,1751431855067,-189.586783,0.000248,7]
[369003886,1751431855077,-266.561174,0.000248,7]
[369003887,1751431855086,-151.0,0.000248,7]
[369003888,1751431855095,-1344.141414,0.000248,7]
[369003889,1751431855104,-1344.141414,0.000248,7]
[369003890,1751431855113,-786.54936096,0.00024819,2]
[369003891,1751431855126,-151.0,0.00024822,2]
[369003892,1751431855135,-151.0,0.00024822,2]